Cogmind - Beta 13 *** ADVENTURER MODE // 2024.04.26 @ 04:28:58 Player: Shippujinlai Result: Destroyed by VT-K58(R) with Subdweller Machine Gun Performance ------------- Evolutions (0) 0 Regions Visited (2) 400 Robots Destroyed (22) 110 Value Destroyed (436) 436 Prototype IDs (0) 0 Alien Tech Used (0) 0 Bonus (0) 0 TOTAL SCORE: 946 Bonus ------- None Cogmind --------- Core Integrity 0/250 Matter 182/300 Energy 200/200 System Corruption 0% Temperature Cool (0) Movement Rolling (110) Location -10/Subcaves Parts ------- > --- POWER (1) -------- Subdweller Power Source > --- PROPULSION (2) --- Subdweller Monowheel Subdweller Monowheel > --- UTILITY (2) ------ Disposable Heat Sink Large Storage Unit > --- WEAPON (2) ------- Medium Laser Subdweller Shrapnel Launcher > --- INVENTORY (15) --- Ion Engine Weight Redist. System Improved Terrain Scanner Makeshift Light Armor Plating Tractor Beam Grenade Launcher Peak State ------------ > --- POWER ------------ Subdweller Power Source > --- PROPULSION ------- Subdweller Monowheel Subdweller Monowheel > --- UTILITY ---------- Disposable Heat Sink Large Storage Unit > --- WEAPON ----------- Medium Laser Subdweller Shrapnel Launcher > --- INVENTORY -------- Ion Engine Weight Redist. System Improved Terrain Scanner Makeshift Light Armor Plating Tractor Beam Grenade Launcher [Rating: 13] Favorites ----------- Power Subdweller Power Source Engine Subdweller Power Source Propulsion Wheel Treads Light Treads Wheel Wheel Utility Large Storage Unit Device Disposable Heat Sink Storage Large Storage Unit Weapon Medium Laser Energy Gun Medium Laser Ballistic Gun Light Assault Rifle Launcher Subdweller Shrapnel Launcher Build | -11 -10 -10 ------- Run | Yrd Mat Sub Slots Evolved . | . . . Power . | . . . Propulsion . | . . . Utility . | . . . Weapon . | . . . Parts Attached 20 | 9 3 8 Power 3 | 1 1 1 Engine 3 | 1 1 1 Core . | . . . Reactor . | . . . Propulsion 6 | 2 . 4 Treads 1 | . . 1 Leg . | . . . Wheel 5 | 2 . 3 Hover . | . . . Flight . | . . . Utility 7 | 3 2 2 Device 4 | 1 1 2 Storage 3 | 2 1 . Processor . | . . . Hackware . | . . . Protection . | . . . Artifact . | . . . Weapon 4 | 3 . 1 Energy Gun 2 | 2 . . Energy Cannon . | . . . Ballistic Gun 1 | 1 . . Ballistic Cannon . | . . . Launcher 1 | . . 1 Special Weapon . | . . . Impact Weapon . | . . . Slashing Weapon . | . . . Piercing Weapon . | . . . Special Melee Weapon . | . . . Unidentified Prototypes . | . . . Parts Lost 5 | . . 5 Power 1 | . . 1 Propulsion 2 | . . 2 Utility 1 | . . 1 Weapon 1 | . . 1 Highest Loss Streak 2 | . . 2 To Critical Strikes . | . . . Average Slot Usage (%) 97 | . 100 96 Engine 13 | . 14 13 Treads 1 | . . 2 Wheel 26 | . 28 25 Device 13 | . 14 13 Storage 13 | . 13 14 Energy Gun 25 | . 28 24 Naked Turns . | . . . Heaviest Build 36 | 15 27 36 Greatest Support 40 | 26 32 40 Greatest Overweight (x) 1 | . . 1 Average Overweight (x) . | . . . Largest Inventory Capacity 15 | 8 15 15 Average Capacity 13 | 6 9 15 Most Carried 7 | 4 5 7 Average Carried 5 | 2 4 6 Final Capacity 15 | 5 15 15 Final Carried 6 | 4 5 6 Class Distribution -------------------- 87% | Mutant 12% | Scavenger-Mutant Dominant Class ---------------- Mutant | -10/Materials Mutant | -10/Subcaves Resources | -11 -10 -10 ----------- Run | Yrd Mat Sub Matter Collected 471 | 381 30 60 Remotely 287 | 267 20 . Salvage Created 768 | 228 202 338 Parts 50 | 18 4 28 Haulers Intercepted 1 | . 1 . Recyclers Shooed 1 | . 1 . Parts Field Recycled . | . . . Retrieved Matter . | . . . Parts Self-Destructed 5 | . . 5 Prevented . | . . . Kills | -11 -10 -10 ------- Run | Yrd Mat Sub Combat Hostiles Destroyed 11 | . . 11 Guns 8 | . . 8 AOE 3 | . . 3 Classes Destroyed 8 | 3 1 4 Worker 2 | 2 . . Tunneler 5 | 5 . . Hauler 1 | . 1 . Recycler 3 | 1 2 . Swarmer 2 | . . 2 Grunt 1 | . . 1 Sentry 1 | . . 1 Subdweller 7 | . . 7 Best Kill Streak 4 | 4 3 3 Combat Bots Only 3 | . . 3 Max Kills in Single Turn 1 | 1 1 1 Gunslinging . | . . . Exploded 1 | . . 1 Melee . | . . . Uniques/NPCs Destroyed . | . . . Combat | -11 -10 -10 -------- Run | Yrd Mat Sub Hostile Shots Fired 50 | . . 50 Missed 7 | . . 7 Damage Taken 589 | . . 589 Core 255 | . . 255 Absorbed by Shields . | . . . Ignored by Resistances 166 | . . 166 Core Remaining (%) 100 | 100 . . Volleys Fired 55 | 14 10 31 Largest 2 | 2 2 2 Hottest 100 | 100 100 100 Shots Fired 103 | 28 20 55 Gun 98 | 28 20 50 Cannon . | . . . Launcher 5 | . . 5 Special . | . . . Kinetic 5 | . . 5 Thermal 98 | 28 20 50 Explosive . | . . . Electromagnetic . | . . . Robot Hit Streak 47 | 17 15 47 Robot Miss Streak 2 | 2 1 1 Penetration Max . | . . . Secondary Targets . | . . . Shots Hit Robots 91 | 20 19 52 Core Hits 33 | 9 6 18 Critical Kills . | . . . Critical Parts Destroyed . | . . . Critical Strikes 7 | 1 1 5 Burn 7 | 1 1 5 Melee Attacks . | . . . Impact . | . . . Slashing . | . . . Piercing . | . . . Sneak Attacks . | . . . Combat Hostiles . | . . . Follow-up Attacks . | . . . Damage Inflicted 1559 | 254 235 1070 Guns 1090 | 254 235 601 Cannons . | . . . Explosions 469 | . . 469 Melee . | . . . Ramming . | . . . Kinetic 469 | . . 469 Thermal 1090 | 254 235 601 Explosive . | . . . Electromagnetic . | . . . Impact . | . . . Slashing . | . . . Piercing . | . . . Highest Corruption . | . . . Average Corruption . | . . . Corruption Purged . | . . . Corruption Blocked . | . . . Overload Shots . | . . . Overflow Damage . | . . . Projectiles . | . . . Explosions . | . . . Melee . | . . . Knockbacks . | . . . Impact . | . . . Kinetic . | . . . Secondary . | . . . Self-Inflicted Damage 19 | . . 19 Shots 2 | . . 2 Rammed . | . . . Targets Rammed . | . . . Kicked . | . . . Crushed . | . . . Highest Temperature 273 | 273 194 20 Average Temperature 86 | 99 91 4 Received Heat Transfer 207 | . . 207 Effects 1 | 1 . . Energy Bleed 1 | 1 . . Siege Activations . | . . . Robots Corrupted . | . . . Combat Hostiles . | . . . Parts Fried . | . . . Impact Corruptions . | . . . Robots Melted . | . . . Combat Hostiles . | . . . Parts Melted 9 | . 4 5 Heat Transferred 3737 | 814 777 2146 Parts Sabotaged . | . . . Parts Stolen . | . . . Parts Stripped . | . . . Power Chain Reactions . | . . . Alert | -11 -10 -10 ------- Run | Yrd Mat Sub Peak Influence 40 | 40 39 . Initial 22 | . 22 . Average 27 | 21 31 . Maximum Alert Level . | . . . Low Security (%) 100 | 100 100 . Level 1 . | . . . Level 2 . | . . . Level 3 . | . . . Level 4 . | . . . Level 5 . | . . . High Security . | . . . Max Security . | . . . Squads Dispatched . | . . . Investigation . | . . . Extermination . | . . . Reinforcement . | . . . Assault . | . . . Garrison . | . . . Intercept . | . . . Searches Triggered . | . . . Construction Impeded . | . . . Haulers Reinforced . | . . . Active Scanning Responses . | . . . Cargo Convoy Interrupts . | . . . Stealth | -11 -10 -10 --------- Run | Yrd Mat Sub Distress Signals . | . . . Communications Jammed . | . . . Distress Signals . | . . . Times Spotted 14 | . . 14 Peak Tracking Total 2 | . . 2 Tactical Retreats . | . . . Traps | -11 -10 -10 ------- Run | Yrd Mat Sub Traps Triggered . | . . . Indirectly . | . . . Trap Hack Attempts . | . . . Triggered . | . . . Disarmed . | . . . Reprogrammed . | . . . Reused . | . . . Traps Extracted . | . . . Installed . | . . . Triggered . | . . . Machines | -11 -10 -10 ---------- Run | Yrd Mat Sub Machines Disabled . | . . . Max in Single Turn . | . . . Machines Repaired . | . . . Machines Dismantled . | . . . Machines Sabotaged . | . . . Overloaded Fab Kills . | . . . Hacking | -11 -10 -10 --------- Run | Yrd Mat Sub Machines Accessed 2 | . 2 . Terminals 1 | . 1 . Fabricators . | . . . Repair Stations . | . . . Recycling Units 1 | . 1 . Scanalyzers . | . . . Garrison Access . | . . . Total Hacks 3 | . 3 . Successful 2 | . 2 . Failed 1 | . 1 . Catastrophic . | . . . Database Lockouts . | . . . Manual . | . . . Terminals 1 | . 1 . Fabricators . | . . . Repair Stations . | . . . Recycling Units 2 | . 2 . Scanalyzers . | . . . Garrison Access . | . . . Terminal Hacks 1 | . 1 . Hauler Manifests 1 | . 1 . Fabricator Hacks . | . . . Repair Station Hacks . | . . . Recycling Unit Hacks 1 | . 1 . Report Inventory 1 | . 1 . Scanalyzer . | . . . Garrison Access Hacks . | . . . Unauthorized Hacks . | . . . Terminals . | . . . Fabricators . | . . . Repair Stations . | . . . Recycling Units . | . . . Scanalyzers . | . . . Garrison Access . | . . . Data Cores Recovered . | . . . Used . | . . . Hacking Detections 1 | . 1 . Full Trace Events . | . . . Feedback Events . | . . . Feedback Blocked . | . . . Robot Schematics Acquired . | . . . Robots Built . | . . . Authchips . | . . . Time . | . . . Total Robot Build Rating . | . . . Part Schematics Acquired . | . . . Parts Built . | . . . Authchips . | . . . Time . | . . . Total Part Build Rating . | . . . Parts Repaired . | . . . Time . | . . . Parts Recycled . | . . . Recycled Matter . | . . . Retrieved Matter . | . . . Retrieved Components . | . . . Parts Scanalyzed . | . . . Part Schematics Acquired . | . . . Parts Damaged . | . . . Bothacking | -11 -10 -10 ------------ Run | Yrd Mat Sub Used RIF Installer . | . . . Robots Hacked . | . . . Non-combat . | . . . Combat . | . . . Robot Hacks Applied . | . . . Relay Couplers Released . | . . . Fabnet Peak Effective % . | . . . Robots Rewired . | . . . Allies Hacked . | . . . Hacks Repelled . | . . . Allies | -11 -10 -10 -------- Run | Yrd Mat Sub Total Allies . | . . . Largest Group . | . . . Highest-Rated Group . | . . . Highest-Rated Ally . | . . . Total Orders . | . . . Ally Attacks . | . . . Total Damage . | . . . Kills . | . . . Allies Corrupted . | . . . Allies Melted . | . . . Intel | -11 -10 -10 ------- Run | Yrd Mat Sub Robot Analysis Total . | . . . Derelict Logs Recovered 2 | . . 2 Drone Launches . | . . . Drone Recoveries . | . . . Exploration | -11 -10 -10 ------------- Run | Yrd Mat Sub Turns Passed 1675 | 181 312 1182 Spaces Moved 1315 | 137 232 946 Core 4 | 4 . . Treads 80 | . . 80 Legs . | . . . Wheels 1231 | 133 232 866 Hover . | . . . Flight . | . . . Fastest Speed 50 | 50 90 90 Average Speed 103 | 88 90 108 Slowest Speed 240 | 90 90 240 Overloaded Moves . | . . . Propulsion Burnouts . | . . . Robots Hopped . | . . . Cave-ins Triggered . | . . . Exploration Rate (%) 27 | 5 29 48 Regions Visited 2 Branch Regions 1 Pre-discovered Areas 3 | . . 3 Known Exits Taken . | . . . Unknown Exits Taken 2 | 1 1 . Scrap Searched . | . . . Spaces Dug 16 | . . 16 Terrain Destroyed 56 | . . 56 Melee . | . . . Projectile . | . . . AOE 56 | . . 56 Terrain Rammed . | . . . Walls Destroyed . | . . . Machines Disabled . | . . . Actions | -11 -10 -10 --------- Run | Yrd Mat Sub Total 1525 | 164 315 1046 Wait 124 | . 66 58 Move 1313 | 136 231 946 Hop . | . . . Pick Up 6 | 3 1 2 Fast Attach 16 | 9 3 4 Attach 2 | . . 2 Detach 2 | 1 1 . Swap 2 | . . 2 Drop 5 | 1 3 1 Fire 55 | 14 10 31 Melee . | . . . Ram . | . . . Kick . | . . . Crush . | . . . Escape Stasis . | . . . Rewire . | . . . Trap . | . . . Miscellaneous . | . . . Route ------- -11/Scrapyard -10/Materials -10/Subcaves (discovered 1 exit: [*Mat]) History --------- Turn | Location | Event 23 | -11/Scrapyard | Discovered new exit (range 16) 182 | -11/Scrapyard | Entered Materials 316 | -10/Materials | Build established: Mutant 484 | -10/Materials | Discovered new exit (range 9) 494 | -10/Materials | Entered Subcaves 600 | -10/Subcaves | Learned location of Zion (-6) 600 | -10/Subcaves | Met a Zionite searching for "candidates" 645 | -10/Subcaves | Shifting Twisted Machinery released Hvy. Battle Rifle 944 | -10/Subcaves | A Subdweller sparked back to life 944 | -10/Subcaves | A Subdweller sparked back to life 973 | -10/Subcaves | A Subdweller sparked back to life 1028 | -10/Subcaves | Shifting Twisted Machinery released Sub. Machine Gun 1390 | -10/Subcaves | Core integrity fell below 50% 1576 | -10/Subcaves | Shifting Twisted Machinery released Mak. Light Armor Plating 1587 | -10/Subcaves | Shifting Twisted Machinery released Sub. Monowheel 1629 | -10/Subcaves | Core integrity fell below 20% 1666 | -10/Subcaves | Discovered new exit (range 13) 1672 | -10/Subcaves | Ambushed by Subdwellers from Twisted Machinery 1674 | -10/Subcaves | Ambushed by Subdweller buried in earth 1676 | -10/Subcaves | Destroyed by VT-K58(R) with Subdweller Machine Gun Last Messages --------------- 01409_ Beam Rifle melted. 01409_ Y-45 Defender destroyed. 01415_ Acquired Lgt. Treads. 01416_ Acquired 10 matter. 01498_ Acquired derelict log, extracted data. World map confirmed: -6/Zion. Mak. Light Armor Plating falls loose from the Twisted Machinery. Sub. Monowheel falls loose from the Twisted Machinery. 01608_ Dropped Lgt. Treads. 01609_ Acquired Sub. Monowheel. 01611_ Subatomizers dissect the Lgt. Treads. 01613_ Acquired Mak. Light Armor Plating. 01626_ IC-PU7(R) destroyed. 01630_ ZM-ALQ(R) destroyed. 01636_ Acquired 2 matter. 01666_ EXIT=FOUND 01674_ TX-U1N(R) destroyed. 01675_ Z9-FSX(R): "GOODGOOD!" Map ----- +----------------------------------------------------+ | ?????????????????????????????????????????????????? | | ?????????????????????????????????????????????????? | | ?????????????????????????????????????????????????? | | ?????????????????????????????????????????????????? | | ?????????????????????????????????????????????????? | | ?????????????????????????????????????????????????? | | ?????????????????????????????????????????????????? | | ?????????????????????????????????????????????????? | | ?????????????????????????????????????????????????? | | ?????????????????????????????????????????????????? | | ???????????????????????? ###?????????????????????? | | ???????????????????????? ; # ???????????????????? | | ???????????????????????? ;#???????????????????? | | #??????????????????????? R;??? ????????????????? | | ##??????????????????????%R ?? ????????????????? | | ##?????????????????????& ## ?????????????????? | | #????????????????????? ?????????????????? | | ##????????????????????? < ? ??????????????????? | | ##?????????????????????? ???????????????????? | | #??????????????????????? ???????????????????? | | ????????????????????????# # ??????? ????????????? | | ????????????????????????# #?????? ??????????? | | ????????????????????????# ??????# ?????????? | | ???????????????????????## ####### ????????? | | ???????????????????##### ## ????????? | | ???????????????## ?# @ ????????? | | ???????????????# "##< ????????? | | ????????????????# #### #????????? | | ???????????????#$ #$#< #### ##?????????? | | ????????????????????# ## ##??????????? | | ????????????????????### #???????????? | | ??????????????????????## #???????????????? | | ???????????????????????## ##??????????????? | | ?????????????????????#### ##?????????????? | | ?????????????????????# ##????????????? | | ?????????????????????###### ##???????????? | | ????????????????########### #???????????? | | ??######?######## # ## #???????????? | | ?## = ### # ## ##???????????? | | ## " " ## ##????????????? | | """ ## # # ###?????????????? | | " " " ## " = & ##### ##???????????????? | | ## " " " # & * ##?## ##????????????????? | | ?######## " & #??#####?????????????????? | | ????????## ##????????????????????????? | | ?????????# #?????????????????????????? | | ?????????## " ""###?????????????????????????? | | ??????????#### #######???????????????????????????? | | ?????????????###?????????????????????????????????? | | ?????????????????????????????????????????????????? | +----------------------------------------------------+ Best States ------------- Heat Dissipation 25 Coolant Potential 50 Energy Generation 15 Energy Capacity 250 Matter Stores 400 Matter Capacity 400 Sight Range 16 Terrain Scan Density 10 Additional Mass Support 6 Resistance: KI 20 Resistance: TH 20 Resistance: EX 20 Resistance: EM 20 Resistance: I 20 Resistance: S 20 Resistance: P 20 Evasion (%) 42 Recoil Reduction 1 Offensive Hacking 10 Item Schematics ----------------- None Robot Schematics ------------------ None Fabricated ------------ Nothing Alien Tech Used ----------------- None Achievements -------------- Use The Force Challenges ------------ None Game ------ Seed DrainedDirtyFlail Manual? 0 Play Time 00:13:32 Cumulative 21.9 hours Start 2024.04.26 @ 04:18:23 End 2024.04.26 @ 04:28:58 Sessions 1 Manual Loads 0 Difficulty Adventurer Special Mode None Game No. 15 Rogue 0 Adventurer 15 Explorer 0 Win Type - Total 0 Types 0/0/0/0/0/0/0/0/0 Lore% 15 Gallery% 28 Achievement% 26 Wizard Run 0 Options --------- Layout 1 ASCII 0 Keyboard 0 Movement Mouse Keybinds 0 Fullscreen 0 Font 28/SmallcapsGlow Map View 50x40 Zoom Use 0% Tactical HUD 1 Map Filters NONE Filters NONE Steam 1 RUN: 18c7fd69-8d2e-4379-a740-797098d17e56